bitfinex-derivatives/quotes_ETHF0:USTF0_20241230
["timestamp","ask_amount","ask_price","bid_price","bid_amount"]
[1735600763710,2.55575429,3354.4,3354.2,0.29864]
[1735600764815,2.25711429,3354.4,3353.7,40.8]
[1735600765119,2.25711429,3354.4,3354.3,0.29864]
[1735600765317,2.25711429,3354.4,3353.6,3.2078]
[1735600765509,2.25711429,3354.0,3353.6,3.2078]
[1735600765708,2.25711429,3354.0,3353.9,0.29868]
[1735600765913,2.55576429,3354.3,3354.1,0.29866]
[1735600767514,3.49523695,3354.4,3354.2,0.29865]
[1735600767714,3.49523695,3354.4,3354.3,0.29864]
[1735600768417,3.79387695,3354.4,3354.3,0.29864]
[1735600769017,0.29864,3354.4,3354.3,0.29864]
[1735600769219,6.54196695,3354.5,3354.3,0.29864]
[1735600769916,6.54196695,3354.5,3354.0,0.8497]
[1735600770116,6.24333695,3354.5,3354.4,0.29863]
[1735600770318,6.54196695,3354.5,3354.4,0.29863]
[1735600770811,6.54196695,3354.5,3354.0,0.8497]
[1735600770812,6.54196695,3354.5,3354.3,0.29864]
[1735600771212,0.29866,3354.2,3354.0,0.29866]
[1735600771412,2.25711429,3354.2,3353.6,4.1415]
[1735600771616,2.25711429,3354.2,3354.1,0.29866]
[1735600778223,3.49523695,3354.4,3354.3,0.29864]
[1735600778719,3.49523695,3354.4,3354.3,41.09864]
[1735600780024,3.49523695,3354.4,3354.3,0.29864]
[1735600780321,0.9203,3354.5,3354.4,0.29864]
[1735600781617,1.21893,3354.5,3354.4,0.29864]
[1735600781817,0.9203,3354.5,3354.4,0.29864]
[1735600785023,4.41553695,3354.5,3354.4,0.29864]
[1735600786617,4.8636146,3354.5,3354.4,0.29864]
[1735600786817,4.8636146,3354.5,3354.0,3.95447]
[1735600787024,0.29865,3354.4,3354.3,0.29864]
[1735600787826,4.8636146,3354.5,3354.4,0.29864]
[1735600788327,0.9203,3354.5,3354.4,0.29864]
[1735600789829,1.36836846,3354.5,3354.4,0.29864]
[1735600791028,6.05129856,3354.5,3354.4,0.29864]
[1735600793430,5.39392151,3354.5,3354.4,0.29864]
[1735600797835,1.36836846,3354.5,3354.4,0.29864]
[1735600801731,0.36985083,3354.6,3354.5,0.29863]
[1735600801937,6.31380239,3355.0,3354.9,0.29859]
[1735600802139,3.12005239,3355.0,3354.9,5.76350429]
[1735600802438,0.73095239,3355.0,3354.9,46.56350429]
[1735600802735,0.73095239,3355.0,3354.9,51.56350429]
[1735600803135,6.92868945,3355.2,3354.9,51.26491429]
[1735600803325,9.29941652,3355.4,3354.9,51.26491429]
[1735600803527,7.97442652,3355.4,3355.3,5.76347429]
[1735600803738,6.69259652,3355.4,3355.3,5.76347429]
[1735600804036,0.911,3356.4,3355.8,0.29851]
[1735600804037,3.51628036,3355.9,3355.8,0.29851]
[1735600804235,2.88023036,3355.9,3355.8,3.50631]
[1735600804540,2.88023036,3355.9,3355.8,8.50631]
[1735600804541,0.85545036,3355.9,3355.8,8.50631]
[1735600804736,0.85545036,3355.9,3355.8,49.30631]
[1735600804930,3.6e-07,3355.9,3355.8,49.30631]
[1735600805132,2.25711429,3356.6,3355.8,60.00796974]
[1735600805529,2.55558429,3356.3,3356.1,0.29848]
[1735600805835,0.9414,3356.5,3355.8,60.00796974]
[1735600806138,1.23985,3356.5,3356.3,0.29846]
[1735600806339,0.9414,3356.5,3356.2,4.67588275]
[1735600806640,0.29846,3356.4,3356.2,4.97435275]
[1735600806940,0.9414,3356.5,3356.2,4.67588275]
[1735600807135,0.29847,3356.3,3356.2,4.67588275]
[1735600807440,2.55558429,3356.3,3356.2,4.67588275]
[1735600807838,2.55558429,3356.3,3356.1,4.67588275]
[1735600807839,0.29847,3356.2,3356.1,4.67588275]
[1735600808440,1.18487,3356.2,3356.1,4.67588275]
[1735600809244,0.29849,3356.1,3355.9,0.2985]
[1735600809841,2.25711429,3356.0,3355.7,4.67588275]
[1735600810041,2.55561429,3356.0,3355.8,0.29851]
[1735600810246,0.8962,3355.9,3355.8,0.29851]
[1735600810440,1.19471,3355.9,3355.7,4.97440275]
[1735600810638,1.19471,3355.9,3355.7,0.29852]
[1735600810944,1.19471,3355.9,3355.5,4.67588275]
[1735600810945,0.8962,3355.9,3355.8,0.29851]
[1735600811641,3.2078,3357.3,3356.9,0.29841]
[1735600811842,2.5094,3357.2,3357.1,0.29839]
[1735600812145,1.7036,3357.2,3357.1,0.29839]
[1735600812541,0.8058,3357.9,3356.9,3.95384]
[1735600812735,1.6695,3357.8,3357.7,0.29834]
[1735600813037,2.85211429,3358.7,3358.1,0.2983]
[1735600813038,0.8058,3358.5,3358.1,0.2983]
[1735600813243,0.831,3358.4,3358.3,0.29829]
[1735600813444,0.831,3358.4,3358.2,0.29829]
[1735600813641,0.831,3358.4,3358.3,0.29829]
[1735600813841,0.831,3358.4,3358.2,0.29829]
[1735600814143,0.831,3358.4,3358.1,0.2983]
[1735600814334,0.831,3358.4,3358.0,0.29831]
[1735600814335,1.12929,3358.4,3358.0,0.29831]
[1735600814538,6.29591429,3358.4,3357.8,40.8]
[1735600814747,0.2983,3358.2,3357.8,41.09833]
[1735600815045,0.29831,3358.1,3357.8,41.09833]
[1735600815540,0.8391,3358.0,3357.9,0.29832]
[1735600815747,0.8391,3358.0,3357.7,3.2078]
[1735600816039,0.8391,3358.0,3357.9,0.29832]
[1735600816243,4.33708,3358.4,3357.8,40.8]
[1735600816444,5.17618,3358.4,3358.1,0.2983]
[1735600816947,0.29829,3358.3,3358.0,0.29831]
[1735600817145,0.29829,3358.3,3357.8,40.8]
[1735600817347,0.29829,3358.3,3358.0,0.29831]
[1735600817541,0.2983,3358.2,3358.0,0.29831]
[1735600817941,0.29831,3358.1,3357.9,0.29832]
[1735600819146,3.92721429,3358.4,3357.9,0.29832]
[1735600819346,0.2983,3358.2,3358.0,0.29831]
[1735600819742,0.29829,3358.3,3358.1,0.2983]
[1735600819943,0.29829,3358.3,3357.7,3.2078]
[1735600819944,3.92721429,3358.4,3357.7,3.2078]
[1735600820139,0.29829,3358.3,3358.1,0.29831]
[1735600820948,1.96839,3358.4,3358.2,0.2983]
[1735600821742,1.96839,3358.4,3357.7,3.2078]
[1735600822046,1.96839,3358.4,3358.2,0.2983]
[1735600822244,0.2983,3358.3,3357.7,3.2078]
[1735600822444,1.96838,3358.4,3358.2,0.2983]
[1735600823350,1.6701,3358.4,3358.3,0.29829]
[1735600827155,0.8058,3358.5,3358.4,0.29828]
[1735600827846,3.2078,3358.8,3358.7,0.29825]
[1735600828047,0.2982,3359.3,3359.1,0.29821]
[1735600828247,4.0707,3359.4,3358.3,5.46491429]
[1735600828447,4.3689,3359.4,3359.2,0.2982]
[1735600828750,4.3689,3359.4,3359.3,0.2982]
[1735600828751,0.8629,3359.4,3359.3,0.2982]
[1735600828952,2.25711429,3359.7,3359.3,3.2078]
[1735600829154,0.29818,3359.6,3359.4,0.29819]
[1735600829349,0.29819,3359.5,3359.3,3.506]
[1735600830049,2.25711429,3359.7,3359.3,3.2078]
[1735600830254,0.29822,3359.1,3358.9,3.50603]
[1735600830443,3.08311429,3359.4,3358.9,3.50603]
[1735600830646,0.29822,3359.2,3359.0,0.29822]
[1735600831248,0.29822,3359.1,3359.0,0.29822]
[1735600832255,0.29822,3359.2,3359.0,0.29822]
[1735600832458,1.12419,3359.4,3359.2,0.2982]
[1735600832649,1.49038,3360.8,3359.9,0.29814]
[1735600832650,3.50592,3360.3,3359.9,0.29814]
[1735600832850,4.0847,3360.3,3359.3,5.46491429]
[1735600833055,2.25711429,3360.1,3359.3,3.2078]
[1735600833253,0.29818,3359.6,3359.4,40.8]
[1735600833556,1.6809,3359.5,3359.4,40.8]
[1735600834256,1.6809,3359.5,3359.4,41.09819]
[1735600834846,0.8453,3359.8,3359.6,0.29817]
[1735600835054,0.8453,3359.8,3359.4,40.8]
[1735600835351,1.16104,3360.0,3359.9,0.29815]
[1735600835352,0.8629,3360.0,3359.9,0.29815]
[1735600836051,2.25711429,3361.0,3359.7,3.2078]
[1735600836251,0.8629,3360.9,3360.4,3.2078]
[1735600836458,0.29808,3360.7,3360.4,3.5059]
[1735600836852,3.12001429,3360.9,3360.4,3.2078]
[1735600837055,3.12001429,3360.9,3360.4,3.5059]
[1735600837253,0.29808,3360.7,3360.4,3.5059]
[1735600837756,0.29812,3360.3,3360.0,3.2078]
[1735600837957,0.29812,3360.3,3360.1,0.29813]
[1735600838150,0.29811,3360.4,3360.1,0.29813]
[1735600838952,3.11251429,3360.6,3360.0,3.2078]
[1735600839257,0.8629,3360.9,3360.7,0.29808]
[1735600839659,0.8629,3360.9,3360.8,0.29807]
[1735600840159,0.8629,3360.9,3360.5,0.29809]
[1735600840160,0.29807,3360.8,3360.5,0.29809]
[1735600840550,0.29807,3360.8,3360.4,3.2078]
[1735600840755,0.29807,3360.8,3360.5,0.29809]
[1735600841963,1.16096,3360.9,3360.6,0.29808]
[1735600842159,0.8629,3360.9,3360.5,0.29809]
[1735600842359,0.29808,3360.7,3360.5,0.29809]
[1735600842559,0.29809,3360.6,3360.4,3.5059]
[1735600842867,0.29812,3360.3,3360.0,3.50594]
[1735600843064,0.9261,3360.2,3360.0,3.50594]
[1735600843265,0.9261,3360.2,3360.1,0.29813]
[1735600844362,3.51211429,3360.6,3360.1,0.29813]
[1735600844561,3.51211429,3360.6,3360.0,3.2078]
[1735600844763,3.51211429,3360.6,3359.6,40.8]
[1735600844764,2.25711429,3360.3,3359.6,40.8]
[1735600844962,3.2078,3360.1,3359.5,3.2078]
[1735600845163,0.29817,3359.6,3359.5,3.2078]
[1735600845357,3.2078,3360.1,3359.5,3.2078]
[1735600845563,3.2078,3360.1,3359.5,3.50598]
[1735600845564,0.29817,3359.7,3359.5,3.50598]
[1735600845970,0.29816,3359.8,3359.6,0.29817]
[1735600846160,3.2078,3360.1,3359.5,3.2078]
[1735600846367,0.29815,3359.9,3359.8,0.29815]
[1735600846663,0.29814,3360.0,3359.8,0.29815]
[1735600846867,2.25711429,3360.4,3360.0,0.29814]
[1735600847167,2.25711429,3360.4,3359.5,3.2078]
[1735600847370,0.29814,3360.0,3359.8,0.29815]
[1735600847873,0.29816,3359.9,3359.8,0.29816]
[1735600848769,5.46491429,3360.1,3359.5,3.2078]
[1735600848962,2.63099,3360.3,3359.1,5.53228275]
[1735600848963,0.29821,3359.2,3359.1,4.67588275]
[1735600849163,3.2078,3359.7,3359.1,4.67588275]
[1735600849365,1.8286,3359.6,3359.2,40.8]
[1735600849568,3.2078,3360.5,3359.4,3.2078]
[1735600849767,1.8286,3360.3,3359.8,3.2078]
[1735600850068,1.8286,3360.3,3360.2,0.29812]
[1735600850270,2.12672,3360.3,3360.1,0.29812]
[1735600850466,1.8286,3360.3,3360.2,0.29812]
[1735600850667,0.8859,3360.3,3360.2,41.09812]
[1735600850861,0.2981,3360.5,3360.3,0.29811]
[1735600851064,0.2981,3360.5,3360.2,40.8]
[1735600851065,0.29811,3360.3,3360.2,40.8]
[1735600851669,0.29811,3360.3,3360.2,41.09812]
[1735600852072,1.7677,3360.8,3360.4,0.2981]
[1735600852372,0.29811,3360.4,3360.3,0.29811]
[1735600852574,0.29811,3360.3,3360.2,41.09812]
[1735600852773,0.29811,3360.3,3360.2,40.8]
[1735600852974,1.7677,3360.8,3360.3,0.29811]
[1735600852975,0.29811,3360.4,3360.3,0.29811]
[1735600853172,1.7677,3360.8,3360.2,40.8]
[1735600853373,1.7677,3360.8,3360.2,41.09812]
[1735600853676,0.29811,3360.3,3360.2,41.09812]
[1735600854372,1.255,3360.7,3360.2,40.8]
[1735600854575,1.255,3360.7,3360.3,0.9438]
[1735600855173,0.29808,3360.7,3360.6,0.29808]
[1735600855576,0.29809,3360.6,3360.5,0.29809]
[1735600856469,1.7677,3360.8,3359.9,5.61188275]
[1735600856670,3.05825405,3360.9,3360.4,0.2981]
[1735600856875,0.30266379,3360.5,3360.4,3.2078]
[1735600857079,0.30266379,3360.5,3360.4,44.0078]
[1735600857276,0.30266379,3360.5,3360.4,44.3059]
[1735600857675,0.00456379,3360.5,3360.4,44.3059]
[1735600858281,1.254,3360.8,3360.4,44.3059]
[1735600858474,0.29809,3360.6,3360.4,44.3059]
[1735600858780,1.254,3360.8,3360.4,44.3059]
[1735600858781,0.29809,3360.5,3360.4,44.3059]
[1735600860083,1.78,3360.7,3360.4,44.0078]
[1735600860282,0.29809,3360.6,3360.5,0.29809]
[1735600861482,2.07808,3360.7,3360.6,0.29809]
[1735600862672,0.29809,3360.6,3360.5,0.29809]
[1735600862879,0.2981,3360.5,3360.4,3.2078]
[1735600863479,1.5521,3360.5,3360.4,3.2078]
[1735600864388,2.4518,3360.5,3360.4,3.2078]
[1735600867487,0.29814,3360.1,3360.0,3.2078]
[1735600868292,1.23994,3360.1,3360.0,3.2078]
[1735600868485,2.11324,3360.1,3360.0,3.2078]
[1735600868884,1.8151,3360.1,3360.0,3.50596]
[1735600869090,0.29815,3360.1,3360.0,3.2078]
[1735600870290,0.29815,3360.1,3360.0,4.1402]
[1735600870992,0.29819,3359.7,3359.6,4.97407275]
[1735600871191,0.29819,3359.7,3359.6,4.67588275]
[1735600872183,2.7879,3359.8,3359.5,41.7324]
[1735600872184,0.29819,3359.6,3359.5,41.7324]
[1735600872783,2.7879,3359.8,3359.4,3.2078]
[1735600872989,3.506,3359.5,3359.4,4.67588275]
[1735600873594,3.2078,3359.5,3359.4,4.67588275]
[1735600874694,3.2078,3359.5,3359.3,40.8]
[1735600875491,2.25711429,3359.6,3359.3,40.8]
[1735600875996,1.254,3359.7,3359.4,0.29821]
[1735600876189,1.254,3359.7,3359.3,40.8]
[1735600876388,1.5522,3359.7,3359.3,41.09822]
[1735600876589,1.5522,3359.7,3359.3,40.8]
[1735600876590,0.29821,3359.6,3359.3,40.8]
[1735600876903,2.55532429,3359.6,3359.3,40.8]
[1735600877588,2.55532429,3359.6,3359.3,41.09823]
[1735600877794,0.29821,3359.6,3359.3,41.09823]
[1735600878391,1.254,3359.7,3359.3,41.09823]
[1735600878596,0.29821,3359.5,3359.3,41.09822]
[1735600878796,0.29821,3359.6,3359.4,0.29822]
[1735600879385,0.29821,3359.5,3359.3,41.09823]
[1735600879588,0.29822,3359.4,3359.3,40.8]
[1735600880391,0.29822,3359.4,3359.3,41.09823]
[1735600880894,0.29822,3359.4,3359.3,40.8]
[1735600881095,0.29822,3359.4,3359.3,41.09823]
[1735600882394,0.29821,3359.6,3359.5,0.2982]
[1735600882700,0.29822,3359.5,3359.4,0.29822]
[1735600886005,0.29822,3359.4,3359.3,40.8]
[1735600886204,0.29823,3359.3,3359.2,4.67588275]
[1735600886403,1.19723,3359.3,3359.2,4.67588275]
[1735600887704,1.19723,3359.3,3359.0,41.6996]
[1735600887705,0.29825,3359.1,3359.0,41.6996]
[1735600888599,0.29825,3359.1,3359.0,40.8]
[1735600888807,0.29826,3358.9,3358.8,4.67588275]
[1735600888993,2.55537429,3358.9,3358.8,4.67588275]
[1735600890001,2.55537429,3358.9,3358.7,47.81382413]
[1735600890002,2.25711429,3358.9,3358.7,47.81382413]
[1735600890204,0.29827,3358.8,3358.7,40.8]
[1735600891510,0.29827,3358.9,3358.8,0.29826]
[1735600891810,0.29827,3358.9,3358.7,40.8]
[1735600891811,0.29826,3359.0,3358.9,0.29826]
[1735600893307,1.254,3359.2,3358.7,40.8]
[1735600893505,0.29827,3358.9,3358.8,0.29827]
[1735600893905,1.254,3359.2,3358.7,40.8]
[1735600894109,0.29826,3359.0,3358.9,0.29825]
[1735600894409,0.29825,3359.1,3359.0,0.29825]
[1735600895308,0.29827,3359.0,3358.9,0.29826]
[1735600895702,0.951,3359.4,3358.7,45.47588275]
[1735600895910,0.951,3359.4,3358.7,4.97416275]
[1735600895911,0.29827,3358.8,3358.7,4.97416275]
[1735600896612,0.29827,3358.8,3358.7,45.77416275]
[1735600897111,0.7456,3359.2,3358.7,41.09828]
[1735600897302,0.29827,3358.8,3358.7,40.8]
[1735600897802,0.29828,3358.7,3358.6,4.97416275]
[1735600898002,0.29828,3358.7,3358.6,4.67588275]
[1735600899608,7.29721429,3358.9,3358.4,3.2078]
[1735600899609,0.2983,3358.5,3358.4,3.2078]
[1735600901603,0.2983,3358.5,3358.0,4.67588275]
[1735600901604,0.29833,3358.1,3358.0,4.67588275]
[1735600902213,3.50613,3358.1,3358.0,4.67588275]
[1735600903115,3.50613,3358.1,3357.3,0.846]
[1735600903116,3.2078,3358.1,3357.3,0.846]
[1735600903307,3.95366,3358.1,3357.3,0.846]
[1735600903503,3.2078,3358.1,3357.4,3.2078]
[1735600903705,3.2078,3358.1,3357.5,43.05711429]
[1735600903907,0.29837,3357.8,3357.7,0.29837]
[1735600904418,0.29838,3357.6,3357.5,41.09838]
[1735600905111,0.29837,3357.8,3357.7,0.29837]
[1735600905312,0.29838,3357.6,3357.5,41.09838]
[1735600905508,3.2078,3358.1,3357.5,40.8]
[1735600905715,0.29838,3357.7,3357.6,0.29838]
[1735600905916,0.29838,3357.6,3357.5,40.8]
[1735600906620,0.29838,3357.6,3357.5,41.09839]
[1735600907121,0.29838,3357.6,3357.5,40.8]
[1735600907510,0.29838,3357.6,3357.5,41.09839]
[1735600908917,0.29838,3357.6,3357.5,40.8]
[1735600910320,0.29838,3357.6,3357.5,41.09839]
[1735600910517,0.29838,3357.6,3357.5,41.91109]
[1735600911817,0.29838,3357.6,3357.5,41.6127]
[1735600912116,0.29838,3357.6,3357.5,41.09839]
[1735600914021,0.29838,3357.6,3357.5,40.8]
[1735600914315,0.29838,3357.6,3357.5,41.09839]
[1735600918729,0.29838,3357.7,3357.6,0.29837]
[1735600921739,2.25711429,3357.7,3357.5,40.8]
[1735600921935,0.29841,3357.3,3357.2,4.67588275]
[1735600922132,0.29841,3357.3,3357.2,0.73014017]
[1735600922536,1.10341,3357.3,3357.2,0.73014017]
[1735600923335,0.29843,3357.1,3357.0,0.29842]
[1735600923732,0.805,3357.3,3357.0,0.29842]
[1735600923733,1.7229,3357.6,3357.0,2.25711429]
[1735600923936,0.29839,3357.5,3357.4,3.50619]
[1735600924142,1.7229,3357.6,3357.5,0.29839]
[1735600924143,2.02128,3357.6,3357.5,0.29839]
[1735600924942,0.29839,3357.5,3357.4,3.50619]
[1735600926140,0.29836,3357.9,3357.8,0.29835]
[1735600926345,0.29835,3358.0,3357.9,0.29835]
[1735600926849,1.7143,3358.5,3358.1,0.29833]
[1735600927146,1.254,3358.6,3358.1,0.29833]
[1735600927339,0.2983,3358.5,3358.1,0.29833]
[1735600927546,1.254,3358.6,3358.1,0.29833]
[1735600927748,0.29831,3358.4,3358.1,0.29833]
[1735600927941,0.29832,3358.3,3358.1,0.29833]
[1735600928741,1.254,3358.6,3358.1,0.29833]
[1735600928742,3.50613,3358.2,3358.1,0.29833]
[1735600929049,3.2078,3358.2,3358.1,0.29833]
[1735600930145,3.50613,3358.2,3358.1,0.29833]
[1735600930543,3.2078,3358.2,3358.1,0.29833]
[1735600930739,3.2078,3358.2,3357.7,2.25711429]
[1735600930940,0.29835,3357.9,3357.8,0.29836]
[1735600932242,0.29838,3357.6,3357.5,8.16190413]
[1735600933040,2.652,3358.1,3357.5,7.86352413]
[1735600933351,3.50613,3358.2,3358.0,0.29834]
[1735600933643,0.29833,3358.1,3358.0,0.29834]
[1735600934450,0.29833,3358.2,3358.0,0.29834]
[1735600934651,0.29833,3358.1,3358.0,0.29834]
[1735600935146,1.8414,3358.5,3357.9,3.2078]
[1735600935147,0.29834,3358.0,3357.9,3.2078]
[1735600940960,3.2078,3358.1,3357.6,7.01382413]
[1735600941156,0.29837,3357.7,3357.6,7.31220413]
[1735600941354,0.29837,3357.7,3357.6,7.01382413]
[1735600942356,3.50617,3357.7,3357.6,7.01382413]
[1735600942854,0.2984,3357.4,3357.3,7.01382413]
[1735600943958,0.2984,3357.4,3357.0,3.2078]
[1735600943959,2.25711429,3357.5,3357.0,10.22162413]
[1735600944157,0.29842,3357.1,3357.0,10.22162413]
[1735600944554,2.16122,3357.1,3357.0,10.22162413]
[1735600944961,2.16122,3357.1,3357.0,3.2078]
[1735600948562,2.16122,3357.1,3357.0,44.0078]
[1735600949764,1.253,3357.3,3357.0,44.0078]
[1735600949963,1.253,3357.3,3357.1,0.29842]
[1735600949964,0.29842,3357.2,3357.1,0.29842]
[1735600950169,0.29842,3357.2,3357.1,1.24122]
[1735600950463,0.29842,3357.2,3357.1,0.9428]
[1735600950763,0.29842,3357.2,3357.1,1.24122]
[1735600950965,0.29842,3357.2,3357.1,0.9428]
[1735600951962,0.29842,3357.1,3357.0,44.30623]
[1735600953763,0.29842,3357.1,3357.0,44.0078]
[1735600954067,0.29845,3356.8,3356.7,2.64779554]
[1735600954270,5.76336429,3356.8,3356.7,2.64779554]
[1735600954967,5.76336429,3356.8,3356.2,1.8884]
[1735600954968,0.29849,3356.3,3356.2,1.8884]
[1735600957968,0.29851,3356.1,3356.0,0.29851]
[1735600959078,3.2078,3356.8,3356.0,43.05711429]
[1735600959369,0.29848,3356.5,3356.4,0.29848]
[1735600959967,0.29848,3356.5,3356.4,41.09848]
[1735600960360,0.29848,3356.5,3356.4,40.8]
[1735600961666,3.2078,3356.8,3356.2,3.2078]
[1735600961966,0.29849,3356.3,3356.2,3.2078]
[1735600962167,0.74615,3356.7,3355.8,3.2078]
[1735600962371,0.74615,3356.7,3356.1,0.2985]
[1735600962565,0.74615,3356.7,3355.8,3.2078]
[1735600962767,0.2985,3356.3,3356.2,0.2985]
[1735600965868,0.29849,3356.4,3356.3,0.29849]
[1735600966267,5.46491429,3356.8,3356.2,3.2078]
[1735600966471,0.29849,3356.5,3356.4,0.29848]
[1735600967374,6.71791429,3356.8,3356.2,3.2078]
[1735600967875,0.29848,3356.5,3356.4,0.29848]
[1735600968176,6.71791429,3356.8,3356.2,3.2078]
[1735600968376,0.29849,3356.4,3356.3,0.29849]
[1735600969180,0.29849,3356.3,3356.2,3.5063]
[1735600971474,0.29849,3356.4,3356.3,0.29849]
[1735600972477,0.29848,3356.5,3356.4,0.29848]
[1735600972872,0.29848,3356.5,3356.2,3.2078]
[1735600972873,0.29849,3356.4,3356.3,0.29849]
[1735600974283,0.29849,3356.3,3356.2,3.2078]
[1735600976483,0.9289,3356.4,3356.1,0.29851]
[1735600976685,0.2985,3356.2,3356.1,0.29851]
[1735600977181,0.29851,3356.1,3356.0,3.50632]
[1735600977680,0.8964,3356.3,3356.1,0.2985]
[1735600978284,0.29851,3356.2,3356.1,0.2985]
[1735600978979,0.74609,3357.0,3356.1,0.74629]
[1735600979179,3.8028,3357.4,3357.1,0.29842]
[1735600979180,0.29842,3357.2,3357.1,0.29842]
[1735600979381,0.29841,3357.2,3357.1,0.29842]
[1735600979686,0.29841,3357.2,3357.1,41.09842]
[1735600980484,0.29841,3357.2,3357.1,40.8]
[1735600980882,0.29841,3357.2,3357.1,41.09842]
[1735600981482,3.2078,3357.4,3357.1,40.8]
[1735600981682,0.29841,3357.2,3357.1,41.09842]
[1735600982382,0.2984,3357.4,3357.3,0.2984]
[1735600983281,3.2078,3357.7,3357.2,0.9492]
[1735600983592,5.92,3358.2,3357.4,0.746]
[1735600983778,5.92,3358.2,3358.0,0.29834]
[1735600983779,0.29834,3358.1,3358.0,0.29834]
[1735600987086,0.29834,3358.1,3357.7,3.2078]
[1735600987087,1.7693,3358.2,3358.1,0.29833]
[1735600987278,2.06763,3358.2,3358.1,0.29833]
[1735600989791,0.29833,3358.1,3358.0,0.29834]
[1735600990089,1.7693,3358.2,3357.7,3.2078]
[1735600990289,2.06763,3358.2,3358.1,0.29833]
[1735600990991,0.29834,3358.1,3357.7,3.2078]
[1735600991190,0.29834,3358.1,3358.0,0.29834]
[1735600993088,0.9429,3358.3,3357.7,5.46491429]
[1735600993286,0.2983,3358.5,3358.1,3.2078]
[1735600993784,0.2983,3358.5,3358.3,0.29831]
[1735600994090,2.8678,3358.6,3358.3,0.29831]
[1735600994293,0.29833,3358.2,3358.1,3.2078]
[1735600994489,0.29835,3357.9,3357.8,0.29836]
[1735600994794,2.25711429,3358.2,3357.7,3.2078]
[1735600994795,0.29834,3358.1,3358.0,0.29834]
[1735600995489,2.25711429,3358.5,3357.7,3.2078]
[1735600995690,0.29834,3358.1,3357.7,3.2078]
[1735600995886,0.29834,3358.1,3358.0,0.29834]
[1735600996088,0.29833,3358.2,3357.7,3.2078]
[1735600996287,0.29835,3357.9,3357.8,0.29836]
[1735600996589,3.00287429,3358.5,3357.7,3.2078]
[1735600996791,0.29834,3358.1,3358.0,0.29834]
[1735600998897,0.29835,3358.0,3357.9,0.29835]
[1735600999999,0.29834,3358.1,3358.0,0.29834]
[1735601002301,3.00287429,3358.5,3357.9,0.29835]
[1735601002302,0.29835,3358.0,3357.9,0.29835]
[1735601002501,2.23005,3358.0,3357.9,0.29835]
[1735601004403,2.23005,3358.0,3357.7,3.2078]
[1735601004404,0.29836,3357.8,3357.7,3.2078]
[1735601005199,0.29841,3357.3,3357.2,3.2078]
[1735601005805,0.29841,3357.3,3356.8,0.29845]
[1735601005806,0.29845,3356.9,3356.8,0.29845]
[1735601006103,2.746,3357.2,3356.6,40.8]
[1735601006504,0.29845,3356.9,3356.8,0.29845]
[1735601006900,2.746,3357.2,3356.6,40.8]
[1735601007102,2.746,3357.2,3356.9,0.29843]
[1735601007306,0.29843,3357.0,3356.9,0.29843]
[1735601010006,2.746,3357.2,3356.6,40.8]
[1735601010208,0.29846,3356.7,3356.6,40.8]
[1735601010815,3.49205,3357.2,3356.6,40.8]
[1735601010816,0.29845,3356.8,3356.7,0.29846]
[1735601011715,2.746,3357.2,3356.6,40.8]
[1735601011916,2.746,3357.2,3356.9,0.29843]
[1735601011917,0.29843,3357.1,3356.9,0.29843]
[1735601012212,0.29843,3357.1,3357.0,0.29843]
[1735601012711,0.29843,3357.0,3356.9,3.50624]
[1735601013215,2.746,3357.2,3356.6,40.8]
[1735601013415,0.29846,3356.8,3356.7,0.29845]
[1735601016615,2.746,3357.2,3356.6,40.8]
[1735601016806,0.29845,3356.8,3356.7,0.29846]
[1735601017012,2.746,3357.2,3356.6,41.09846]
[1735601017616,0.29846,3356.7,3356.6,41.09846]
[1735601018220,0.29845,3356.8,3356.7,0.29846]
[1735601020023,0.29846,3356.7,3356.6,41.09846]
[1735601022323,0.29846,3356.7,3356.6,40.8]
[1735601022624,0.29846,3356.7,3356.6,41.09847]
[1735601023217,0.29846,3356.7,3356.6,40.8]
[1735601023417,0.29846,3356.7,3356.6,41.09847]
[1735601025326,3.49207,3357.2,3356.6,40.8]
[1735601025627,0.29845,3356.8,3356.7,0.29845]
[1735601027125,0.29846,3356.7,3356.6,41.09846]
[1735601029611,0.29846,3356.7,3356.6,41.09847]
[1735601030627,0.29845,3356.9,3356.8,0.29844]
[1735601033625,2.746,3357.2,3356.7,0.29845]
[1735601033626,0.29846,3356.8,3356.7,0.29845]
[1735601038423,2.746,3357.2,3356.7,0.29845]
[1735601038826,0.29846,3356.8,3356.7,0.29845]
[1735601040029,2.746,3357.2,3356.6,40.8]
[1735601040226,0.29845,3356.8,3356.7,0.29845]
[1735601044732,0.29845,3356.8,3356.7,4.98007526]
[1735601045636,0.29843,3357.1,3357.0,0.29843]
[1735601045828,2.746,3357.2,3356.7,4.68162526]
[1735601045829,3.2078,3357.3,3356.8,0.74613]
[1735601046129,3.2078,3357.3,3357.2,0.29841]
[1735601046333,0.7983,3357.5,3357.4,0.2984]
[1735601046934,1.09669,3357.5,3357.4,1.1158]
[1735601047136,1.09669,3357.5,3357.4,5.79742526]
[1735601047137,0.7983,3357.5,3357.4,5.79742526]
[1735601047827,1.09669,3357.5,3357.4,5.79742526]
[1735601048333,1.09669,3357.5,3357.4,6.8902309]
[1735601049731,0.29839,3357.5,3357.4,6.8902309]
[1735601049937,0.29839,3357.5,3357.4,13.89319985]
[1735601050927,2.55550429,3357.5,3357.4,12.77739985]
[1735601051128,2.55550429,3357.5,3357.4,2.7004882]
[1735601051738,0.2984,3357.4,3357.3,9.3517655]